Cogmind - Beta 10.2 @@@ ROGUE MODE // 2020.10.31 @ 02:14:48 Player: Wiperd Result: Destroyed by B-75 Beast with Magnetic Acceleration Cannon Performance ------------- Evolutions (1) 500 Regions Visited (6) 1200 Robots Destroyed (40) 200 Value Destroyed (1109) 1109 Prototype IDs (0) 0 Alien Tech Used (0) 0 Bonus (609) 609 TOTAL SCORE: 3618 Bonus ------- Follower Combat Kills 27 Met Imprinter 300 Was Imprinted 300 Friendly Fire -18 Cogmind --------- Core Integrity 0/400 Matter 266/300 Energy 99/100 System Corruption 0% Temperature Cool (12) Movement Treading (170) Location -6/Proximity Caves Parts ------- > --- POWER (1) -------- (None) > --- PROPULSION (3) --- Armored Treads VTOL Module > --- UTILITY (2) ------ Improved Terrain Scan Processor Advanced Targeting Computer > --- WEAPON (3) ------- Barrage Gun > --- INVENTORY (4) ---- VTOL Module High-capacity Battery (400) Particle Charger Self-destruct Interrupter (50) Peak State ------------ > --- POWER ------------ Improved Ion Engine > --- PROPULSION ------- Aluminum Leg Aluminum Leg Makeshift Leg > --- UTILITY ---------- Improved Heat Sink Advanced Targeting Computer > --- WEAPON ----------- Pulse Rifle Autogun Gauss Rifle > --- INVENTORY -------- Heat Sink High-capacity Battery Improved Terrain Scan Processor Self-destruct Interrupter [Rating: 24] Favorites ----------- Power Improved Ion Engine Engine Improved Ion Engine Propulsion Aluminum Leg Treads Armored Treads Leg Aluminum Leg Wheel Compact Wheel Flight Unit VTOL Module Utility Advanced Targeting Computer Device Heat Sink Processor Advanced Targeting Computer Protection Medium Armor Plating Weapon Pulse Rifle Energy Gun Pulse Rifle Energy Cannon Particle Cannon Ballistic Gun Autogun Launcher Grenade Launcher Build | -11 -10 -10 -9 -9 -7 -6 ------- Run | Scr Mat Min Mat Min Zio Pro Slots Evolved 2 | . . . 2 . . . Power . | . . . . . . . Propulsion 1 | . . . 1 . . . Utility . | . . . . . . . Weapon 1 | . . . 1 . . . Parts Attached 47 | 9 7 9 11 3 2 6 Power 9 | 2 2 3 2 . . . Engine 9 | 2 2 3 2 . . . Core . | . . . . . . . Reactor . | . . . . . . . Propulsion 15 | 2 2 1 3 3 1 3 Treads 1 | . . . . . . 1 Leg 9 | 2 2 1 . 3 1 . Wheel 1 | . . . 1 . . . Hover . | . . . . . . . Flight 4 | . . . 2 . . 2 Utility 9 | 3 1 . 3 . . 2 Device 4 | 2 . . 1 . . 1 Storage . | . . . . . . . Processor 4 | 1 1 . 1 . . 1 Hackware . | . . . . . . . Protection 1 | . . . 1 . . . Artifact . | . . . . . . . Weapon 14 | 2 2 5 3 . 1 1 Energy Gun 5 | 1 1 2 1 . . . Energy Cannon 1 | . . . 1 . . . Ballistic Gun 7 | 1 1 2 1 . 1 1 Ballistic Cannon . | . . . . . . . Launcher 1 | . . 1 . . . . Special Weapon . | . . . . . . . Impact Weapon . | . . . . . . . Slashing Weapon . | . . . . . . . Piercing Weapon . | . . . . . . . Special Melee Weapon . | . . . . . . . Unidentified Prototypes . | . . . . . . . Parts Lost 11 | . . 4 . . . 7 Power 2 | . . 1 . . . 1 Propulsion 5 | . . 2 . . . 3 Utility . | . . . . . . . Weapon 4 | . . 1 . . . 3 Highest Loss Streak 6 | . . 2 . . . 6 Average Slot Usage (%) 92 | . 100 90 81 98 99 80 Engine 11 | . 14 13 11 11 11 7 Leg 23 | . 28 19 10 29 33 20 Flight 1 | . . . 2 2 . 5 Device 10 | . 14 14 6 11 11 7 Processor 12 | . 14 14 11 11 11 14 Energy Gun 10 | . 14 8 12 11 11 6 Energy Cannon 5 | . . . 10 11 9 . Ballistic Gun 13 | . 14 17 7 11 12 17 Naked Turns . | . . . . . . . Heaviest Build 24 | 11 10 12 24 18 18 18 Greatest Support 40 | 20 20 20 16 30 40 40 Greatest Overweight (x) 3 | . . 3 2 1 . 1 Average Overweight (x) . | . . . 1 . . . Largest Inventory Capacity 4 | 4 4 4 4 4 4 4 Average Capacity 4 | 4 4 4 4 4 4 4 Most Carried 4 | 4 4 4 4 4 4 4 Average Carried 2 | 1 3 2 2 3 3 2 Final Capacity 4 | 4 4 4 4 4 4 4 Final Carried 4 | 4 4 3 3 3 3 4 Class Distribution -------------------- 44% | Gunner 27% | Mutant 20% | Scavenger-Gunner 7% | Scavenger-Mutant Dominant Class ---------------- Mutant | -10/Materials Mutant | -10/Mines Gunner | -9/Materials Scavenger-Gunner | -9/Mines Gunner | -7/Zion Gunner | -6/Proximity Caves Resources | -11 -10 -10 -9 -9 -7 -6 ----------- Run | Scr Mat Min Mat Min Zio Pro Matter Collected 1103 | 302 65 214 153 86 10 273 Remotely . | . . . . . . . Salvage Created 1240 | 72 215 184 173 178 . 418 Parts 79 | 8 12 19 10 14 . 16 Haulers Intercepted . | . . . . . . . Recyclers Shooed 2 | . . 1 . 1 . . Parts Field Recycled . | . . . . . . . Retrieved Matter . | . . . . . . . Parts Self-Destructed 14 | . . . . . . 14 Prevented . | . . . . . . . Kills | -11 -10 -10 -9 -9 -7 -6 ------- Run | Scr Mat Min Mat Min Zio Pro Combat Hostiles Destroyed 36 | 1 5 10 5 4 . 11 Guns 30 | 1 5 8 2 3 . 11 Cannons 4 | . . . 3 1 . . AOE 2 | . . 2 . . . . Classes Destroyed 9 | 2 2 1 3 1 . . Tunneler 1 | 1 . . . . . . Recycler 1 | . 1 . . . . . Operator 1 | . . . 1 . . . Watcher 1 | . . . 1 . . . Swarmer 18 | . 3 6 3 . . 6 Grunt 13 | 1 2 3 . 3 . 4 Brawler 1 | . . . . 1 . . Sentry 3 | . . . 2 . . 1 Demolisher 1 | . . 1 . . . . Best Kill Streak 4 | 2 3 3 3 3 . 4 Combat Bots Only 4 | 1 3 3 3 3 . 4 Max Kills in Single Turn 2 | 2 1 2 1 1 . 1 Gunslinging . | . . . . . . . Exploded 2 | . . 2 . . . . Melee . | . . . . . . . Uniques/NPCs Destroyed . | . . . . . . . Combat | -11 -10 -10 -9 -9 -7 -6 -------- Run | Scr Mat Min Mat Min Zio Pro Damage Taken 2269 | 34 216 631 133 72 . 1183 Core 647 | 23 41 156 44 23 . 360 Absorbed by Shields . | . . . . . . . Core Remaining (%) 51 | 90 . 12 . . . . Volleys Fired 128 | 4 20 42 11 9 . 42 Largest 3 | 2 2 2 3 3 . 3 Hottest 196 | 60 70 70 196 154 . 114 Shots Fired 279 | 8 40 79 31 27 . 94 Gun 258 | 8 40 78 20 18 . 94 Cannon 20 | . . . 11 9 . . Launcher 1 | . . 1 . . . . Special . | . . . . . . . Kinetic 167 | 4 20 58 8 9 . 68 Thermal 92 | . 5 20 23 18 . 26 Explosive 1 | . . 1 . . . . Electromagnetic 19 | 4 15 . . . . . Robot Hit Streak 18 | 3 7 18 9 13 . 13 Robot Miss Streak 5 | 1 4 5 2 2 . 5 Penetration Max . | . . . . . . . Secondary Targets 2 | . 2 . . . . . Max Gunslinging Chain 1 | . 1 . . . . . Shots Hit Robots 176 | 5 22 49 18 16 . 66 Core Hits 67 | 2 9 18 10 5 . 23 Critical Hits 1 | . . . . . . 1 Critical Kills . | . . . . . . . Critical Parts Destroyed 1 | . . . . . . 1 Melee Attacks . | . . . . . . . Impact . | . . . . . . . Slashing . | . . . . . . . Piercing . | . . . . . . . Sneak Attacks . | . . . . . . . Combat Hostiles . | . . . . . . . Follow-up Attacks . | . . . . . . . Damage Inflicted 2694 | 82 257 624 305 203 . 1223 Guns 2397 | 82 257 496 177 162 . 1223 Cannons 164 | . . . 123 41 . . Explosions 124 | . . 124 . . . . Melee . | . . . . . . . Ramming 9 | . . 4 5 . . . Kinetic 1437 | 29 98 345 25 42 . 898 Thermal 962 | . 50 151 275 161 . 325 Explosive 124 | . . 124 . . . . Electromagnetic 162 | 53 109 . . . . . Impact . | . . . . . . . Slashing . | . . . . . . . Piercing . | . . . . . . . Highest Corruption . | . . . . . . . Average Corruption . | . . . . . . . Corruption Purged . | . . . . . . . Overload Shots . | . . . . . . . Overflow Damage . | . . . . . . . Projectiles . | . . . . . . . Explosions . | . . . . . . . Melee . | . . . . . . . Knockbacks . | . . . . . . . Impact . | . . . . . . . Kinetic . | . . . . . . . Secondary . | . . . . . . . Self-Inflicted Damage 2 | . . 2 . . . . Shots . | . . . . . . . Rammed 2 | . . 2 . . . . Targets Rammed 3 | . . 2 1 . . . Kicked 1 | . . . 1 . . . Crushed . | . . . . . . . Highest Temperature 474 | 26 90 120 474 378 . 126 Average Temperature 78 | 14 32 38 169 148 . 49 Received Heat Transfer 501 | 18 99 99 27 30 . 228 Effects 4 | . . . 3 1 . . Shutdowns 1 | . . . 1 . . . Energy Bleed 1 | . . . . 1 . . Short Circuit 1 | . . . 1 . . . Damage (minor) 1 | . . . 1 . . . Siege Activations . | . . . . . . . Robots Corrupted . | . . . . . . . Combat Hostiles . | . . . . . . . Parts Fried 1 | . 1 . . . . . Impact Corruptions . | . . . . . . . Robots Melted . | . . . . . . . Combat Hostiles . | . . . . . . . Parts Melted 4 | . . . 3 1 . . Heat Transferred 2183 | . 148 444 555 333 . 703 Parts Sabotaged . | . . . . . . . Parts Stolen . | . . . . . . . Parts Stripped . | . . . . . . . Power Chain Reactions . | . . . . . . . Missiles Intercepted . | . . . . . . . Alert | -11 -10 -10 -9 -9 -7 -6 ------- Run | Scr Mat Min Mat Min Zio Pro Peak Influence 205 | 25 156 205 165 164 . . Initial 60 | . 16 60 33 19 . . Average 86 | 8 80 113 64 105 . . Maximum Alert Level 1 | . . 1 . . . . Low Security (%) 91 | 100 100 75 100 100 . . Level 1 8 | . . 24 . . . . Level 2 . | . . . . . . . Level 3 . | . . . . . . . Level 4 . | . . . . . . . Level 5 . | . . . . . . . High Security . | . . . . . . . Max Security . | . . . . . . . Squads Dispatched . | . . . . . . . Investigation . | . . . . . . . Extermination . | . . . . . . . Reinforcement . | . . . . . . . Assault . | . . . . . . . Garrison . | . . . . . . . Intercept . | . . . . . . . Construction Impeded . | . . . . . . . Haulers Reinforced . | . . . . . . . Stealth | -11 -10 -10 -9 -9 -7 -6 --------- Run | Scr Mat Min Mat Min Zio Pro Distress Signals 1 | . . 1 . . . . Communications Jammed . | . . . . . . . Distress Signals . | . . . . . . . Times Spotted 41 | 1 6 11 6 4 . 13 Peak Tracking Total 4 | 1 4 3 3 2 . 4 Tactical Retreats 2 | . . 1 . . . 1 Traps | -11 -10 -10 -9 -9 -7 -6 ------- Run | Scr Mat Min Mat Min Zio Pro Traps Triggered . | . . . . . . . Indirectly . | . . . . . . . Trap Hack Attempts . | . . . . . . . Triggered . | . . . . . . . Disarmed . | . . . . . . . Reprogrammed . | . . . . . . . Reused . | . . . . . . . Traps Extracted . | . . . . . . . Installed . | . . . . . . . Triggered 1 | . . . . . . 1 Machines | -11 -10 -10 -9 -9 -7 -6 ---------- Run | Scr Mat Min Mat Min Zio Pro Machines Disabled . | . . . . . . . Max in Single Turn . | . . . . . . . Machines Sabotaged . | . . . . . . . Garrisons Compromised . | . . . . . . . Overloaded Fab Kills . | . . . . . . . Fab Network Shutdowns . | . . . . . . . Hacking | -11 -10 -10 -9 -9 -7 -6 --------- Run | Scr Mat Min Mat Min Zio Pro Machines Accessed 7 | . 2 . 5 . . . Terminals 4 | . 1 . 3 . . . Fabricators . | . . . . . . . Repair Stations 1 | . 1 . . . . . Recycling Units . | . . . . . . . Scanalyzers 2 | . . . 2 . . . Garrison Access . | . . . . . . . Total Hacks 18 | . 2 . 16 . . . Successful 11 | . 1 . 10 . . . Failed 5 | . 1 . 4 . . . Catastrophic . | . . . . . . . Database Lockouts 2 | . . . 2 . . . Manual 2 | . . . . . 2 . Terminals 14 | . 1 . 13 . . . Fabricators . | . . . . . . . Repair Stations 1 | . 1 . . . . . Recycling Units . | . . . . . . . Scanalyzers 3 | . . . 3 . . . Garrison Access . | . . . . . . . Terminal Hacks 8 | . 1 . 7 . . . Record 7 | . 1 . 6 . . . Hauler Manifests 1 | . . . 1 . . . Fabricator Hacks . | . . . . . . . Repair Station Hacks . | . . . . . . . Recycling Unit Hacks . | . . . . . . . Scanalyzer 3 | . . . 3 . . . Insert Component 2 | . . . 2 . . . Analyze 1 | . . . 1 . . . Garrison Access Hacks . | . . . . . . . Unauthorized Hacks . | . . . . . . . Terminals . | . . . . . . . Fabricators . | . . . . . . . Repair Stations . | . . . . . . . Recycling Units . | . . . . . . . Scanalyzers . | . . . . . . . Garrison Access . | . . . . . . . Data Cores Recovered 1 | . . . 1 . . . Used . | . . . . . . . Hacking Detections 5 | . 1 . 4 . . . Full Trace Events . | . . . . . . . Feedback Events . | . . . . . . . Feedback Blocked . | . . . . . . . Robot Schematics Acquired . | . . . . . . . Robots Built . | . . . . . . . Matter . | . . . . . . . Time . | . . . . . . . Total Robot Build Rating . | . . . . . . . Part Schematics Acquired 1 | . . . 1 . . . Parts Built . | . . . . . . . Matter . | . . . . . . . Time . | . . . . . . . Total Part Build Rating . | . . . . . . . Parts Repaired . | . . . . . . . Time . | . . . . . . . Parts Recycled . | . . . . . . . Recycled Matter . | . . . . . . . Retrieved Matter . | . . . . . . . Retrieved Components . | . . . . . . . Parts Scanalyzed 1 | . . . 1 . . . Part Schematics Acquired 1 | . . . 1 . . . Parts Damaged . | . . . . . . . Bothacking | -11 -10 -10 -9 -9 -7 -6 ------------ Run | Scr Mat Min Mat Min Zio Pro Used RIF Installer . | . . . . . . . Robots Hacked . | . . . . . . . Non-combat . | . . . . . . . Combat . | . . . . . . . Robot Hacks Applied . | . . . . . . . Relay Couplers Released . | . . . . . . . Robots Rewired . | . . . . . . . Allies Hacked . | . . . . . . . Hacks Repelled . | . . . . . . . Allies | -11 -10 -10 -9 -9 -7 -6 -------- Run | Scr Mat Min Mat Min Zio Pro Total Allies 7 | . . . . 3 4 . Largest Group 4 | . . . . 3 4 1 Highest-Rated Group 146 | . . . . 76 146 37 Highest-Rated Ally 37 | . . . . 31 37 37 Total Orders . | . . . . . . . Ally Attacks 10 | . . . . 3 . 7 Total Damage 111 | . . . . 40 . 71 Kills 1 | . . . . 1 . . Allies Corrupted . | . . . . . . . Allies Melted . | . . . . . . . Intel | -11 -10 -10 -9 -9 -7 -6 ------- Run | Scr Mat Min Mat Min Zio Pro Robot Analysis Total . | . . . . . . . Derelict Logs Recovered 3 | . . . . 2 1 . Drone Launches . | . . . . . . . Drone Recoveries . | . . . . . . . Exploration | -11 -10 -10 -9 -9 -7 -6 ------------- Run | Scr Mat Min Mat Min Zio Pro Turns Passed 3120 | 117 214 632 550 300 971 336 Spaces Moved 2156 | 78 109 376 353 217 772 251 Core 88 | 18 . 67 . . . 3 Treads 14 | . . . . . . 14 Legs 1723 | 60 109 309 157 211 772 105 Wheels 151 | . . . 151 . . . Hover . | . . . . . . . Flight 180 | . . . 45 6 . 129 Fastest Speed 37 | 50 120 100 110 117 120 37 Average Speed 120 | 103 120 130 132 120 124 83 Slowest Speed 200 | 120 120 200 180 150 126 170 Overloaded Moves . | . . . . . . . Propulsion Burnouts . | . . . . . . . Robots Hopped . | . . . . . . . Cave-ins Triggered . | . . . . . . . Exploration Rate (%) 40 | 6 21 67 27 46 85 28 Regions Visited 6 Branch Regions 4 Pre-discovered Areas 2 | . . . . 1 1 . Known Exits Taken . | . . . . . . . Unknown Exits Taken 6 | 1 1 1 1 1 1 . Scrap Searched 4 | . . 1 . 1 2 . Spaces Dug . | . . . . . . . Terrain Destroyed 11 | . . 9 . . . 2 Melee . | . . . . . . . Projectile 2 | . . . . . . 2 AOE 9 | . . 9 . . . . Terrain Rammed . | . . . . . . . Walls Destroyed . | . . . . . . . Machines Disabled . | . . . . . . . Actions | -11 -10 -10 -9 -9 -7 -6 --------- Run | Scr Mat Min Mat Min Zio Pro Total 2447 | 105 153 444 413 239 782 311 Wait 34 | 4 6 4 15 4 1 . Move 2150 | 77 108 375 352 216 771 251 Hop . | . . . . . . . Pick Up 53 | 11 6 7 13 4 4 8 Fast Attach . | . . . . . . . Attach 23 | 7 1 3 4 3 1 4 Detach . | . . . . . . . Swap 24 | 2 6 6 7 . 1 2 Drop 32 | . 6 5 10 3 4 4 Fire 128 | 4 20 42 11 9 . 42 Melee . | . . . . . . . Ram 2 | . . 2 . . . . Kick 1 | . . . 1 . . . Crush . | . . . . . . . Escape Stasis . | . . . . . . . Rewire . | . . . . . . . Trap . | . . . . . . . Miscellaneous . | . . . . . . . Route ------- -11/Scrapyard -10/Materials -10/Mines -9/Materials -9/Mines -7/Zion -6/Proximity Caves History --------- Turn | Location | Event 2 | -11/Scrapyard | Met Revision 17 65 | -11/Scrapyard | Discovered new exit (range 8) 118 | -11/Scrapyard | Entered Materials 304 | -10/Materials | Discovered new exit (range 13) 315 | -10/Materials | Build established: Mutant 332 | -10/Materials | Entered Mines 366 | -10/Mines | Core integrity fell below 50% 442 | -10/Mines | Assembled infested the area 447 | -10/Mines | Assisted by a Guerilla fighting off Assembled 692 | -10/Mines | A weapon hastily lodged in a ceiling crevice suddenly fell to the ground 804 | -10/Mines | Core integrity fell below 20% 931 | -10/Mines | Discovered new exit (range 16) 964 | -10/Mines | Entered Materials 964 | -9/Materials | Evolved 2 slots: Propulsion x1, Weapon x1 1483 | -9/Materials | Build established: Gunner 1491 | -9/Materials | Central database locked down 1491 | -9/Materials | Central database locked down 1497 | -9/Materials | Discovered new exit (range 16) 1514 | -9/Materials | Entered Mines 1517 | -9/Mines | Met a Derelict bent on vengeance 1611 | -9/Mines | Learned Materials stockpile data 1647 | -9/Mines | Received a Mining Laser from a helpful Derelict 1795 | -9/Mines | A Derelict revealed a hidden shortcut to a safe place 1814 | -9/Mines | Entered Zion 1841 | -7/Zion | Build established: Scavenger-Gunner 2136 | -7/Zion | Visited the Megawrench Repair Shop 2136 | -7/Zion | Megawrench repaired 7 parts 2246 | -7/Zion | Imprinted 2248 | -7/Zion | Declared Zion's savior 2315 | -7/Zion | Build established: Gunner 2481 | -7/Zion | Learned Factory stockpile data 2760 | -7/Zion | Discovered new exit (range 15) 2785 | -7/Zion | Entered Proximity Caves 2785 | -6/Proximity Caves | Accompanied by 1 ally 2787 | -6/Proximity Caves | Attracted the attention of an 0b10 checkpoint 3008 | -6/Proximity Caves | Core integrity fell below 50% 3033 | -6/Proximity Caves | Spotted B-75 Beast 3040 | -6/Proximity Caves | Lost 6 parts (1p3n2w) 3113 | -6/Proximity Caves | Core integrity fell below 20% 3121 | -6/Proximity Caves | Destroyed by B-75 Beast with Magnetic Acceleration Cannon Last Messages --------------- Imp. Ion Engine destroyed. S-27 Virus destroyed. Acquired VTOL Module. VTOL Module fries itself beyond repair. Acquired 24 matter. Lgt. Nuclear Core fries itself beyond repair. Dropped Imp. Heat Sink. Acquired Imp. Heat Sink. Dropped Imp. Heat Sink. Acquired VTOL Module. Acquired 24 matter. Acquired 22 matter. Acquired 34 matter. Slug penetrates B-75 Beast. Gauss Rifle destroyed. Acquired Particle Charger. Acquired Barrage Gun. Acquired Arm. Treads. Acquired 15 matter. Acquired 6 matter. Map ----- +----------------------------------------------------+ | ???????????????????????????????????????????## ## | | ???????????????????????????????????????????# | | ????????????????????????? ??????????????#### | | ???????????????????????? ??????????????# ##??# | | ?????????????????????? ????####????## #??# | | ????????????????????? #?# ##### ##### | | ???????????????????? # ## "%" | | ?????????????????? " | | ????????????????? #?????# ###### | | ???############# #????????## # # #????# ## | | ??## #??????????# ##???# ### | | ?## #??????????# # ##??? #?# | | ?# ####"" #?????????## ##??# ?# | | ## ##??#### #????????# ##??# ?# | | #???????? ## #???????# #??# ?# | | #####?????#### ?? #??###### #?# ###### | | # % ###??????# ??????# #? #?????? | | # ## ?????# ??????# ######? ??????? | | #? ???# ??????# #??????? ???????? | | # ##? ### #####?# ##????????#???????? | | # % #?? ### ##???????????????? | | # ##?# #############???? | | # #???????## #???? | | BB!;;;;##### #???? | | ### ######### #???? | | ## ### % @ #??????# #???? | | ?## ### ######;## #??????# #???? | | ??## ## ##??????# ###????# #???? | | ???# ##?????# #????# ##### | | ???# ##????# ## ##????# | | ???# #????# ##?# #?????# | | ???# ## #????## ##???##?????######## | | ???## ## ##?###?????# ##??????????????????? | | ????###### ##??????????# ##???????????????????? | | ?????????####???????????# #????????????????????? | | ????????????????????????## ##????????????????????? | | ?????????????????????????###?????????????????????? | | ?????????????????????????????????????????????????? | | ?????????????????????????????????????????????????? | | ?????????????????????????????????????????????????? | | ?????????????????????????????????????????????????? | | ?????????????????????????????????????????????????? | | ?????????????????????????????????????????????????? | | ?????????????????????????????????????????????????? | | ?????????????????????????????????????????????????? | | ?????????????????????????????????????????????????? | | ?????????????????????????????????????????????????? | | ?????????????????????????????????????????????????? | | ?????????????????????????????????????????????????? | | ?????????????????????????????????????????????????? | +----------------------------------------------------+ Best States ------------- Heat Dissipation 42 Energy Generation 12 Energy Capacity 265 Matter Stores 300 Matter Capacity 300 Sight Range 16 Terrain Scan Range 16 Terrain Scan Density 110 Armor Coverage 225 Evasion (%) 62 Targeting Accuracy 8 Recoil Reduction 1 Item Schematics ----------------- Lrg. Battery | -9/Materials | Scanalyzed Robot Schematics ------------------ None Fabricated ------------ Nothing Alien Tech Used ----------------- None Achievements -------------- Crack Shot Robot Respite Shopping List Storm Trooper The One Tourist Challenges ------------ None Game ------ Seed AnalysisHackingMagmablaster Manual? 0 Play Time 00:56:40 Cumulative 2.5 hours Start 2020.10.31 @ 01:14:49 End 2020.10.31 @ 02:14:48 Sessions 1 Manual Loads 0 Difficulty Rogue Special Mode None Game No. 3 Rogue 3 Adventurer 0 Explorer 0 Win Type - Total 0 Types 0/0/0/0/0/0/0/0/0 Lore% 5 Gallery% 4 Achievement% 3 Wizard Run 0 Options --------- ASCII 0 Keyboard 0 Movement Mouse Keybinds 0 Fullscreen 1 Font 18/TerminusBold Map View 76x50 Tactical HUD 0 Map Filters NONE Filters NONE Steam 1 RUN: 5f80a419-4331-4040-8b74-546e24c71963